bitfinex/quotes_ETHUSD_20220226
["timestamp","ask_amount","ask_price","bid_price","bid_amount"]
[1645848977800,4.3347,2806.2,2805.1,3.6425]
[1645848977999,3.1863,2806.2,2805.1,4.9999]
[1645848978844,3.1863,2806.2,2805.9,1.07412171]
[1645848979446,0.70391385,2806.8,2806.0,3.5]
[1645848979447,0.0114884,2806.8,2806.0,3.5]
[1645848979649,0.0114884,2806.8,2805.9,1.88282171]
[1645848979947,0.0114884,2806.8,2805.9,5.38282171]
[1645848980348,0.0114884,2806.8,2805.9,4.3087]
[1645848980746,0.00520393,2806.5,2805.9,4.3087]
[1645848981555,0.00520393,2806.5,2806.0,1.11358725]
[1645848981750,0.0114884,2806.8,2806.0,1.11358725]
[1645848981998,0.00520411,2806.3,2806.0,1.11358725]
[1645848982794,0.0114884,2806.8,2806.0,1.11358725]
[1645848983194,0.0114884,2806.8,2805.9,3.5]
[1645848984398,0.0114884,2806.8,2806.6,1.34879105]
[1645848985849,0.01669191,2806.8,2806.6,1.34879105]
[1645848986551,0.0114884,2806.8,2806.6,1.34879105]
[1645848986755,0.01669191,2806.8,2806.6,1.34879105]
[1645848987658,0.0114884,2806.8,2806.6,1.34879105]
[1645848988056,0.01669191,2806.8,2806.6,1.34879105]
[1645848988856,0.01042692,2806.8,2806.6,1.34879105]
[1645848989263,0.01563043,2806.8,2806.6,1.34879105]
[1645848990195,0.01042692,2806.8,2806.6,1.34879105]
[1645848990397,0.01563043,2806.8,2806.6,1.34879105]
[1645848991203,0.01042692,2806.8,2806.6,1.34879105]
[1645848992702,0.01562748,2806.8,2806.6,1.34879105]
[1645848993647,0.01042692,2806.8,2806.6,1.34879105]
[1645848994045,0.01562748,2806.8,2806.6,1.34879105]
[1645848994851,0.01042692,2806.8,2806.6,1.34879105]
[1645848995050,0.01562748,2806.8,2806.6,1.34879105]
[1645848996050,0.01042692,2806.8,2806.6,1.34879105]
[1645848996251,0.01562748,2806.8,2806.6,1.33879105]
[1645848996652,0.01562748,2806.8,2806.4,2.1647]
[1645848996854,0.01562748,2806.8,2806.3,0.3]
[1645848997108,0.01562748,2806.8,2806.2,3.3312]
[1645848997309,0.01042692,2806.8,2806.3,3.5]
[1645848997607,0.00520074,2806.7,2806.2,3.3312]
[1645848997807,0.00520074,2806.7,2806.3,1.30563952]
[1645848998409,9.1564,2807.6,2806.3,1.30563952]
[1645848998606,9.014,2807.6,2806.3,4.80563952]
[1645848998807,0.0052008,2806.6,2806.3,6.69645952]
[1645848999008,0.0052008,2806.6,2806.3,3.19645952]
[1645848999408,0.0052008,2806.6,2806.3,2.19645952]
[1645848999614,10.05420849,2807.6,2806.3,2.19645952]
[1645848999811,10.05420849,2807.6,2806.9,1.41663355]
[1645849000009,1.6826,2807.7,2806.5,1.5931]
[1645849000010,0.02079671,2807.5,2806.5,1.5931]
[1645849000211,0.02079671,2807.5,2806.6,3.5]
[1645849000611,0.02079671,2807.5,2806.6,4.8]
[1645849000863,3.1657,2807.8,2806.5,1.8931]
[1645849001064,3.1657,2807.8,2807.0,1.13178078]
[1645849001065,1.31286554,2807.5,2807.0,1.13178078]
[1645849001265,0.00520014,2807.2,2806.5,2.2357]
[1645849001464,0.00520014,2807.2,2806.5,1.2357]
[1645849001865,0.00520014,2807.2,2806.6,3.5]
[1645849002061,1.1549,2807.7,2806.6,3.5]
[1645849002266,0.00520038,2807.0,2806.6,3.5]
[1645849002461,0.00520038,2807.0,2806.6,1.28261424]
[1645849003363,1.02721556,2807.5,2806.6,1.28261424]
[1645849003562,0.00520044,2806.9,2806.6,1.28261424]
[1645849004514,1.02721556,2807.5,2806.7,0.89069]
[1645849004703,1.02721556,2807.5,2806.6,5.07044741]
[1645849004704,0.0052005,2806.9,2806.6,5.07044741]
[1645849004905,0.0052005,2806.9,2806.6,1.57044741]
[1645849005404,0.0052005,2806.9,2806.6,1.27044741]
[1645849005604,1.04801305,2807.5,2806.6,1.27044741]
[1645849005804,1.02721556,2807.5,2806.6,1.27044741]
[1645849006006,0.0052005,2806.9,2806.6,1.27044741]
[1645849006808,1.02721556,2807.5,2806.6,1.27044741]
[1645849007208,0.0052005,2806.9,2806.6,1.27044741]
[1645849008007,1.02721556,2807.5,2806.6,1.27044741]
[1645849008247,0.0052005,2806.9,2806.6,1.27044741]
[1645849009250,1.1549,2807.7,2806.7,3.5]
[1645849009449,1.1549,2807.7,2806.6,1.27044741]
[1645849009652,0.0052005,2806.9,2806.6,1.27044741]
[1645849010452,1.1549,2807.7,2806.6,1.27044741]
[1645849010652,1.1549,2807.7,2807.1,1.28968037]
[1645849010854,0.02079749,2807.5,2807.1,1.28968037]
[1645849011654,1.02598851,2807.8,2807.1,1.28968037]
[1645849012105,0.00519984,2807.4,2806.5,4.7357]
[1645849012303,0.00519984,2807.4,2806.5,1.2357]
[1645849012902,1.16838851,2807.8,2806.5,4.7357]
[1645849013103,1.07404278,2807.1,2806.5,6.06321529]
[1645849013304,1.07404278,2807.1,2806.5,1.2357]
[1645849013504,1.07404278,2807.1,2806.4,0.55]
[1645849013707,1.07404278,2807.1,2806.4,0.25]
[1645849013907,1.07404278,2807.1,2806.2,4.3312]
[1645849014105,1.06884252,2807.1,2806.2,4.0312]
[1645849014304,0.0052005,2806.9,2806.2,5.38014335]
[1645849015309,1.06884252,2807.1,2806.2,5.38014335]
[1645849015506,0.00520074,2806.7,2806.2,5.38014335]
[1645849016149,0.00520074,2806.7,2806.3,3.5]
[1645849016550,1.6267,2807.7,2806.3,4.5]
[1645849016750,0.0052008,2806.6,2806.3,4.5]
[1645849016952,0.0052008,2806.6,2806.3,1.0]
[1645849017354,0.0052008,2806.6,2806.2,5.68014335]
[1645849017553,0.0052008,2806.6,2806.2,5.38014335]
[1645849017754,1.3532009,2807.1,2806.2,5.38014335]
[1645849018056,0.00520092,2806.5,2806.3,3.5]
[1645849018256,0.00520092,2806.5,2806.3,1.0]
[1645849018654,0.00520092,2806.5,2806.2,5.38014335]
[1645849018856,1.43976533,2807.1,2806.2,5.38014335]
[1645849019057,1.79716533,2807.1,2806.2,2.8888]
[1645849019258,0.00520092,2806.5,2806.2,2.8888]
[1645849020108,0.3574,2807.0,2806.2,2.8888]
[1645849020304,1.43976533,2807.1,2806.2,2.8888]
[1645849020305,0.00520098,2806.5,2806.2,2.8888]
[1645849020911,0.00520098,2806.5,2806.1,1.1564]
[1645849021309,0.3574,2807.1,2806.1,1.1564]
[1645849021509,1.86283256,2807.0,2806.1,1.1564]
[1645849021719,0.00520104,2806.4,2806.1,1.1564]
[1645849021915,0.00520104,2806.4,2806.0,1.15526968]
[1645849022312,0.00520104,2806.4,2805.9,0.3]
[1645849022513,1.42981537,2806.5,2805.7,2.62952137]
[1645849022712,0.00520116,2806.3,2805.7,2.62952137]
[1645849023112,0.00520116,2806.3,2805.7,1.62952137]
[1645849023369,0.00520116,2806.3,2805.8,1.32952137]
[1645849023567,0.00520116,2806.3,2805.9,1.06126356]
[1645849023766,1.2126,2807.1,2805.9,1.36126356]
[1645849023969,0.00520134,2806.2,2805.9,2.69078493]
[1645849024165,0.00520134,2806.2,2805.9,1.36126356]
[1645849024768,0.00378078,2806.2,2805.9,1.36126356]
[1645849024969,1.50546923,2806.9,2805.9,1.36126356]
[1645849025169,0.00520134,2806.2,2805.9,1.36126356]
[1645849025668,0.00520134,2806.2,2805.9,0.3]
[1645849025872,0.00520134,2806.2,2805.8,2.62952137]
[1645849026168,0.3574,2807.0,2805.8,0.3]
[1645849026369,0.00181764,2806.3,2805.8,1.3]
[1645849026571,0.00181764,2806.3,2806.1,1.42718394]
[1645849027409,0.3574,2806.7,2805.6,2.3852]
[1645849027607,0.00181769,2806.3,2805.6,1.1352]
[1645849028208,0.00181769,2806.3,2805.6,1.4352]
[1645849028610,0.3574,2806.7,2805.6,1.4352]
[1645849028909,0.00520113,2806.3,2805.9,0.3]
[1645849029309,0.00520113,2806.3,2805.6,1.4352]
[1645849029712,0.3574,2806.7,2805.6,1.4352]
[1645849029912,0.3574,2806.7,2805.9,1.21058204]
[1645849030211,0.00520113,2806.3,2805.9,1.21058204]
[1645849030854,0.3574,2806.7,2805.9,1.21058204]
[1645849031254,0.00520122,2806.3,2805.9,1.21058204]
[1645849032055,1.15590363,2806.8,2805.9,1.21058204]
[1645849032455,0.00520122,2806.3,2805.9,1.21058204]
[1645849033356,1.15590363,2806.8,2805.9,1.21058204]
[1645849033558,0.00520122,2806.3,2805.9,1.21058204]
[1645849034356,0.00520122,2806.3,2805.9,2.54970978]
[1645849034609,1.15590363,2806.8,2805.9,1.33912774]
[1645849034797,0.00520122,2806.3,2805.9,2.33912774]
[1645849034997,0.00520122,2806.3,2805.9,1.33912774]
[1645849035698,1.15590363,2806.8,2806.2,1.15063646]
[1645849036103,0.00520122,2806.3,2806.2,1.15063646]
[1645849036298,0.00520122,2806.3,2805.9,1.33912774]
[1645849036904,3.1466,2807.2,2806.3,0.00149523]
[1645849037104,3.1466,2807.2,2806.3,3.50149523]
[1645849037305,3.1466,2807.2,2806.3,3.80149523]
[1645849037503,3.1466,2807.2,2806.3,4.80149523]
[1645849037901,3.1466,2807.2,2806.8,1.19066626]
[1645849038104,1.9087,2807.2,2806.8,1.19066626]
[1645849038353,0.4998,2807.6,2806.8,1.19066626]
[1645849038354,0.0052005,2806.9,2806.8,1.19066626]
[1645849039253,1.39329426,2807.6,2806.8,1.19066626]
[1645849039455,1.50517428,2807.5,2806.8,1.19066626]
[1645849039655,0.00520038,2807.0,2806.8,1.19066626]
[1645849040458,1.39329426,2807.6,2806.8,1.19066626]
[1645849040655,0.9976,2807.8,2806.8,1.19066626]
[1645849040656,1.5051164,2807.5,2806.8,1.19066626]
[1645849040863,0.00520032,2807.0,2806.9,3.5]
[1645849041057,0.00520032,2807.0,2806.9,4.2544]
[1645849041274,3.2e-07,2807.0,2806.9,7.10852774]
[1645849041464,0.02079779,2807.5,2806.9,8.31431534]
[1645849041658,0.00389215,2808.3,2807.1,0.3574]
[1645849041859,1.10434868,2808.2,2807.7,1.16352504]
[1645849042107,0.00389215,2808.5,2807.7,1.16352504]
[1645849042309,1.50872578,2808.3,2807.7,1.16352504]
[1645849042511,1.50483363,2808.3,2807.7,1.16352504]
[1645849044310,0.00519899,2808.1,2807.7,1.16352504]
[1645849044612,0.00519899,2808.1,2807.7,1.46352504]
[1645849044812,0.00519899,2808.1,2807.7,1.76352504]
[1645849045013,0.00519899,2808.1,2807.7,1.46352504]
[1645849045414,0.00397657,2808.5,2808.3,1.26752806]
[1645849045613,0.01934934,2808.5,2807.8,5.5971]
[1645849045854,0.01934934,2808.5,2807.8,6.5971]
[1645849046457,1.24238075,2808.8,2807.8,6.5971]
[1645849046857,0.00483779,2808.3,2807.8,3.0971]
[1645849047657,0.00397657,2808.7,2807.8,2.0971]
[1645849047856,1.50866372,2808.7,2807.8,2.2098]
[1645849048058,0.0048379,2808.2,2808.1,1.0822579]
[1645849048759,0.0048379,2808.2,2808.0,0.3]
[1645849048966,0.0048379,2808.2,2807.8,2.2098]
[1645849048967,0.3574,2808.5,2807.8,1.2098]
[1645849049163,0.00483779,2808.3,2807.2,3.8424]
[1645849049364,0.00483779,2808.3,2807.2,4.2899]
[1645849049630,0.00483779,2808.3,2807.2,3.9899]
[1645849049832,1.02246652,2807.7,2807.2,5.13759525]
[1645849050031,0.00483779,2808.3,2807.2,1.14769525]
[1645849050228,1.35897657,2808.4,2807.2,1.14769525]
[1645849050434,0.00486259,2807.9,2807.2,1.14769525]
[1645849051437,1.36495277,2807.9,2807.2,1.14769525]
[1645849052834,0.00484809,2807.7,2807.2,1.14769525]
[1645849053661,1.21657657,2808.4,2807.2,1.14769525]
[1645849053862,1.02897555,2808.0,2807.2,1.14769525]
[1645849054165,0.00497895,2807.6,2807.2,1.14769525]
[1645849054964,1.02897555,2808.0,2807.2,1.14769525]
[1645849055164,0.00497901,2807.5,2807.2,1.14769525]
[1645849055565,0.00497901,2807.5,2807.1,2.4838]
[1645849055763,0.00497901,2807.5,2807.1,1.1838]
[1645849056163,1.03295212,2808.0,2807.1,1.1838]
[1645849056364,0.00497912,2807.4,2807.1,1.1838]
[1645849057035,0.00497912,2807.4,2807.1,2.50562546]
[1645849057226,0.00497912,2807.4,2807.1,3.50562546]
[1645849057527,0.00483797,2807.4,2807.1,2.50562546]
[1645849057726,0.00483797,2807.4,2807.1,2.1838]
[1645849057926,0.00483797,2807.4,2807.1,1.1838]
[1645849058125,0.00483797,2807.4,2807.0,1.5108]
[1645849058527,3.8574,2807.9,2807.0,1.5108]
[1645849058727,1.41153825,2807.5,2807.0,1.5108]
[1645849058930,1.41153825,2807.5,2806.6,1.1352]
[1645849058931,0.00483802,2807.3,2806.6,1.1352]
[1645849059330,0.00483802,2807.3,2806.6,1.4352]
[1645849059730,1.41153825,2807.5,2806.6,1.4352]
[1645849059930,0.00483821,2807.1,2806.6,1.4352]
[1645849060955,1.41153825,2807.5,2806.6,1.4352]
[1645849061154,0.00484768,2807.1,2806.6,2.58227202]
[1645849061356,0.00484768,2807.1,2806.6,2.4352]
[1645849061754,0.00484768,2807.1,2806.6,1.4352]
[1645849062154,1.41153825,2807.5,2806.6,1.4352]
[1645849062354,0.00484768,2807.1,2806.6,2.78534373]
[1645849062754,0.00484768,2807.1,2806.6,3.78534373]
[1645849063362,3.5,2807.4,2806.6,1.1352]
[1645849063563,0.3574,2807.3,2806.6,1.1352]
[1645849063761,0.00484768,2807.1,2806.6,1.1352]
[1645849063961,0.00484768,2807.1,2806.3,0.25149523]
[1645849064159,0.00484768,2807.1,2806.3,0.00149523]
[1645849064362,1.16613441,2806.4,2806.3,0.00149523]
[1645849065211,1.52353441,2806.4,2806.3,0.00149523]
[1645849065612,1.52353441,2806.4,2805.4,1.35810767]
[1645849065914,1.03282918,2805.9,2805.4,1.10810767]
[1645849066117,0.3574,2806.4,2805.4,1.10810767]
[1645849066313,0.3574,2806.4,2805.1,5.71426983]
[1645849066314,1.2126,2806.2,2805.1,2.7356]
[1645849066513,0.8724,2806.2,2805.1,2.7356]
[1645849066715,3.5,2806.1,2805.1,2.7356]
[1645849066914,0.8552,2806.1,2805.1,2.7356]
[1645849067116,0.8552,2806.1,2806.0,1.09769061]
[1645849067316,0.8552,2806.1,2805.1,3.093]
[1645849067317,0.8552,2806.1,2805.2,1.2048]
[1645849067514,1.14617496,2806.5,2805.1,4.3356]
[1645849067716,3.5,2806.4,2805.1,4.0356]
[1645849068115,3.5,2806.4,2805.1,2.7356]
[1645849068116,3.8574,2806.4,2805.1,2.7356]
[1645849068357,0.0051828,2806.1,2805.6,0.00518362]
[1645849068557,0.0051828,2806.1,2805.1,2.7356]
[1645849068759,0.0051828,2806.1,2805.1,4.0356]
[1645849068960,0.0051828,2806.1,2805.1,3.0356]
[1645849069160,0.0051828,2806.1,2805.1,4.0356]
[1645849069362,4.7126,2806.4,2805.1,3.0356]
[1645849069563,1.02406381,2805.9,2805.4,1.19241853]
[1645849069769,1.2126,2806.4,2805.4,1.19241853]
[1645849070460,3.5,2806.3,2805.4,1.19241853]
[1645849071069,1.08813743,2805.9,2805.3,0.3]
[1645849071270,1.08813743,2805.9,2805.1,4.0356]
[1645849071466,1.08813743,2805.9,2805.1,3.5356]
[1645849071869,1.08813743,2805.9,2805.0,1.5088]
[1645849072112,1.08813743,2805.9,2805.0,2.65372892]
[1645849072314,1.08813743,2805.9,2805.0,1.5088]
[1645849073318,1.09332034,2805.9,2805.3,0.00518398]
[1645849073520,3.5,2805.8,2805.3,0.00518398]
[1645849074217,3.5,2805.8,2804.9,1.0]
[1645849074422,3.8574,2805.8,2804.5,2.58034307]
[1645849074621,0.8552,2805.5,2804.5,2.58034307]
[1645849074826,3.5,2805.4,2804.5,2.58034307]
[1645849075020,0.8552,2805.4,2804.5,2.58034307]
[1645849075218,3.5,2805.3,2804.5,2.58034307]
[1645849075619,3.5,2805.3,2804.4,1.1875]
[1645849075870,1.41884267,2804.9,2804.3,1.40963051]
[1645849076168,1.41884267,2804.9,2803.8,0.25]
[1645849076169,0.8552,2804.4,2803.8,0.25]
[1645849076367,9.3724,2804.3,2802.9,1.32842957]
[1645849076573,9.3724,2804.3,2802.6,2.08259299]
[1645849076574,0.01265106,2804.1,2803.1,3.04307168]
[1645849076765,0.01265106,2804.1,2802.8,1.32842957]
[1645849076766,0.3574,2803.9,2802.8,1.32842957]
[1645849076971,0.8724,2803.9,2802.6,3.0823994]
[1645849077171,1.01952304,2803.4,2802.6,1.32842957]
[1645849077480,3.5,2803.3,2802.5,1.32842957]
[1645849077673,0.515,2803.2,2802.5,1.32842957]
[1645849077873,0.1426,2803.9,2802.3,0.25]
[1645849078073,0.8552,2803.7,2802.9,0.0051828]
[1645849078873,1.38637926,2803.4,2802.9,1.20862717]
[1645849079071,0.8552,2803.7,2802.9,1.20862717]
[1645849079273,0.8552,2803.7,2803.2,0.00518244]
[1645849079506,1.2126,2803.7,2802.3,0.25]
[1645849079702,0.8552,2803.7,2802.3,0.25]
[1645849080106,0.8552,2803.7,2802.4,12.30213]
[1645849080307,0.8552,2803.7,2803.3,1.29961752]
[1645849080703,0.8552,2803.7,2802.6,0.3574]
[1645849080904,0.8552,2803.7,2802.7,0.14583545]
[1645849081104,0.8552,2803.7,2802.8,0.00323545]
[1645849081811,0.00183588,2803.3,2802.8,0.00323545]
[1645849082008,0.00183588,2803.3,2802.4,0.27033951]
[1645849082209,0.00183588,2803.3,2802.4,0.00323545]
[1645849082610,4.3552,2803.5,2802.4,0.00323545]
[1645849082611,0.515,2803.4,2802.4,0.00323545]
[1645849082809,1.44296924,2802.9,2802.6,0.00518326]
[1645849083008,0.00518246,2803.0,2802.6,0.00518326]
[1645849083667,0.3574,2803.3,2802.4,0.00323545]
[1645849083867,0.3574,2803.3,2802.3,0.25]
[1645849084068,1.18795478,2802.8,2802.6,0.00518322]
[1645849084271,3.5,2802.7,2802.6,0.00518322]
[1645849084471,1.18795478,2802.8,2802.6,0.00518322]
[1645849084670,0.00518252,2802.9,2802.6,0.00518322]
[1645849084871,2.2616,2803.2,2801.9,0.14583545]
[1645849085277,0.00183587,2802.9,2801.9,0.14583545]
[1645849085676,1.43391777,2802.8,2801.9,0.14583545]
[1645849085878,0.00183587,2802.9,2801.9,0.44583545]
[1645849086077,6.6168,2803.2,2801.9,0.44583545]
[1645849086476,0.00183564,2802.9,2801.6,9.23808545]
[1645849086679,0.00183564,2802.9,2801.9,0.1427]
[1645849086876,0.00183564,2802.9,2802.1,1.25001633]
[1645849086877,1.27037009,2802.6,2802.1,1.25001633]
[1645849087108,1.27037009,2802.6,2801.7,0.1426]
[1645849087310,3.5,2802.9,2801.7,0.1426]
[1645849087709,3.50517827,2802.9,2802.2,0.00517946]
[1645849088410,3.50517827,2802.9,2802.2,1.05852424]
[1645849088411,0.00517827,2802.9,2802.2,1.05852424]
[1645849088712,4.3552,2803.1,2802.2,1.05334478]
[1645849088909,0.0051784,2802.9,2802.4,0.00517922]
[1645849089510,0.0051784,2802.9,2801.8,0.1427]
[1645849089714,0.3574,2803.0,2801.8,0.1427]
[1645849090788,1.40880849,2802.7,2802.1,1.18291387]
[1645849090973,1.40880849,2802.7,2801.7,0.25]
[1645849092281,1.40880849,2802.7,2801.9,1.04102955]
[1645849092482,0.00517913,2802.3,2801.9,0.54102955]
[1645849092883,0.00517913,2802.3,2801.8,0.00840245]
[1645849093085,0.00517913,2802.3,2801.8,0.0051802]
[1645849093283,1.40880849,2802.7,2801.7,0.25]
[1645849093484,1.40880849,2802.7,2801.8,0.00322225]
[1645849093689,1.3552,2803.0,2801.8,0.00840235]
[1645849093690,0.0051793,2802.2,2801.8,0.00840235]
[1645849093885,0.00264129,2802.2,2801.8,0.0051801]
[1645849094084,0.00264129,2802.2,2801.9,11.5676]
[1645849094286,0.9978,2803.5,2802.0,0.3574]
[1645849094287,0.1426,2803.5,2802.0,0.3574]
[1645849094523,0.8552,2803.8,2802.2,0.3574]
[1645849094724,0.8552,2803.8,2803.0,1.14752836]
[1645849095228,0.1426,2804.0,2803.0,1.14752836]
[1645849095428,0.1426,2804.0,2803.1,0.00322225]
[1645849095630,0.1426,2804.0,2803.0,0.65075061]
[1645849095829,1.3552,2804.0,2803.0,0.65075061]
[1645849096332,1.2126,2804.0,2803.0,0.65075061]
[1645849097128,0.00517758,2803.6,2803.0,0.65075061]
[1645849098133,1.4439197,2803.8,2803.0,0.65075061]
[1645849098355,0.00517782,2803.4,2803.0,0.65075061]
[1645849099360,1.44379702,2803.8,2803.0,0.65075061]
[1645849099562,1.39379702,2803.8,2803.0,0.65075061]
[1645849099862,0.00517794,2803.3,2803.0,0.65075061]
[1645849100666,1.39379702,2803.8,2803.0,0.65075061]
[1645849100863,0.005178,2803.3,2803.0,0.65075061]
[1645849101064,0.005178,2803.3,2802.7,0.1426]
[1645849101265,0.005178,2803.3,2802.6,0.1426]
[1645849101465,0.005178,2803.3,2802.6,0.4426]
[1645849101666,1.39379702,2803.8,2802.6,0.3]
[1645849102117,0.00485345,2803.1,2802.9,1.18272331]
[1645849103019,1.39379702,2803.8,2802.9,1.18272331]
[1645849103223,0.00485339,2803.1,2803.0,0.00320581]
[1645849103422,0.00485339,2803.1,2802.8,0.3]
[1645849103620,0.00485339,2803.1,2802.6,0.00320581]
[1645849103819,0.00485339,2803.1,2802.5,0.3]
[1645849104019,0.00485339,2803.1,2802.4,2.14590581]
[1645849104222,0.00485339,2803.1,2802.4,1.14590581]
[1645849104422,0.00485362,2802.9,2802.4,1.14590581]
[1645849104824,0.00485362,2802.9,2802.4,0.00320581]
[1645849105021,0.00485362,2802.9,2802.2,0.00320581]
[1645849105221,0.00485362,2802.9,2802.0,0.00320581]
[1645849105423,1.25381265,2803.0,2802.0,0.00320581]
[1645849105622,0.00473821,2802.7,2802.0,0.00320581]
[1645849105868,0.00473821,2802.7,2802.1,1.11225123]
[1645849106067,0.00365232,2802.7,2802.1,1.41225123]
[1645849106469,0.00365232,2802.7,2802.6,0.5]
[1645849106665,1.61121265,2803.0,2802.2,0.00320581]
[1645849106867,1.61121265,2803.0,2802.1,1.41225123]
[1645849107069,1.61121265,2803.0,2802.2,0.00320581]
[1645849109174,0.00517865,2802.7,2802.2,0.00320581]
[1645849109377,0.00517865,2802.7,2802.1,1.41225123]
[1645849110132,1.61121265,2803.0,2802.1,1.41225123]
[1645849110329,0.00517879,2802.6,2802.2,0.00320581]
[1645849110531,0.00517879,2802.6,2802.0,0.3]
[1645849110731,0.00517879,2802.6,2801.9,0.00838593]
[1645849110933,0.00517879,2802.6,2801.8,1.4810522]
[1645849111332,0.3574,2802.8,2801.7,1.55]
[1645849111529,0.3574,2802.8,2802.0,1.36362671]
[1645849112130,0.3574,2802.8,2801.9,0.3]
[1645849112330,0.3574,2802.8,2801.7,0.25]
[1645849113264,1.26838792,2802.5,2801.9,1.36608804]
[1645849113461,1.26838792,2802.5,2801.7,0.25]
[1645849114059,0.00517913,2802.3,2801.8,0.0051802]
[1645849115060,0.00517913,2802.3,2801.7,0.25]
[1645849115061,0.3574,2802.5,2801.3,1.2851]
[1645849115365,0.19906473,2802.6,2801.8,0.00482078]
[1645849115366,1.47981545,2802.1,2801.8,0.00482078]
[1645849115966,0.3574,2801.9,2801.8,0.00482078]
[1645849116262,0.3574,2801.9,2801.3,0.1426]
[1645849116464,0.3574,2801.9,2801.2,2.63210714]
[1645849116865,0.3574,2801.9,2801.2,0.01928643]
[1645849117314,0.8552,2802.0,2801.0,1.19107647]
[1645849117315,0.3574,2801.8,2801.0,1.19107647]
[1645849117515,0.3574,2801.8,2801.0,0.0031935]
[1645849117516,1.2126,2801.8,2801.0,0.0031935]
[1645849117916,0.3574,2801.8,2801.0,0.0031935]
[1645849118118,0.8552,2801.7,2801.0,0.0031935]
[1645849118318,0.8552,2801.7,2800.7,1.32842957]
[1645849118319,0.8552,2801.7,2800.8,0.0031935]
[1645849118522,1.25892114,2801.1,2800.8,0.0031935]
[1645849118719,1.3554,2801.6,2800.6,1.32842957]
[1645849119019,1.3554,2801.6,2800.6,0.0031935]
[1645849119218,0.5002,2801.6,2800.7,0.0031935]
[1645849119418,0.5002,2801.6,2800.5,1.32842957]
[1645849119419,0.8552,2801.5,2800.5,1.32842957]
[1645849119617,4.3552,2801.4,2800.6,0.0031935]
[1645849119816,4.7126,2801.4,2800.4,1.75658119]
[1645849120017,1.36097972,2801.2,2800.9,0.00518107]
[1645849120857,6.07357972,2801.2,2800.9,0.00518107]
[1645849121065,2.57357972,2801.2,2800.4,0.0031935]
[1645849121261,0.8552,2801.2,2800.9,0.00518101]
[1645849121461,0.61908774,2801.2,2800.9,0.00518101]
[1645849121662,0.1428,2801.6,2800.9,0.00518101]
[1645849122065,0.7612,2801.6,2800.9,0.00518101]
[1645849122263,0.7612,2801.6,2800.9,1.30701259]
[1645849122264,0.1428,2801.6,2800.9,1.30701259]
[1645849122466,0.62277888,2802.1,2800.9,0.81219336]
[1645849122663,0.62277888,2802.1,2801.0,9.75808893]
[1645849122664,0.00517888,2802.1,2801.0,9.75808893]
[1645849122864,0.00517888,2802.1,2801.1,0.0031935]
[1645849123465,4.30416556,2802.5,2801.8,1.16125553]
[1645849123666,1.16246556,2802.5,2801.8,1.16125553]
[1645849123862,1.16246556,2802.5,2801.7,0.3]
[1645849123863,1.30506556,2802.5,2801.7,0.3]
[1645849124063,1.78006556,2802.5,2801.7,0.3]
[1645849124265,1.78006556,2802.5,2801.3,0.0031935]
[1645849124706,1.92266556,2802.5,2801.3,0.0031935]
[1645849124903,1.92266556,2802.5,2801.8,1.40800305]
[1645849125106,2.28006556,2802.5,2801.8,1.40800305]
[1645849125303,0.75579997,2802.4,2801.8,1.40800305]
[1645849125602,0.75579997,2802.4,2801.7,0.3]
[1645849125803,4.61319997,2802.4,2801.3,0.0031935]
[1645849126003,1.11319997,2802.4,2801.3,0.0031935]
[1645849127208,0.00517954,2802.0,2801.3,0.0031935]
[1645849127410,0.00517954,2802.0,2801.8,1.04860559]
[1645849128269,0.13819997,2802.4,2801.8,1.04860559]
[1645849128459,0.00517948,2802.0,2801.8,1.04860559]
[1645849128660,0.00517948,2802.0,2801.7,0.3]
[1645849129059,0.00517948,2802.0,2801.3,0.0031935]
[1645849129461,0.6176,2802.2,2801.3,0.0031935]
[1645849129660,0.00517954,2802.0,2801.6,1.26562952]
[1645849130561,0.6176,2802.2,2801.6,1.26562952]
[1645849130861,0.0051796,2801.9,2801.6,1.26562952]
[1645849132008,0.00517957,2801.9,2801.6,1.26562952]
[1645849132413,0.00517957,2801.9,2801.5,0.3]
[1645849132612,0.00517957,2801.9,2801.3,0.0031935]
[1645849132812,0.00517957,2801.9,2801.2,0.3]
[1645849133112,3.63819997,2802.4,2801.2,0.0031935]
[1645849133314,3.63819997,2802.4,2801.3,0.0031935]
[1645849133315,0.00517947,2801.9,2801.3,0.0031935]
[1645849133512,0.00517947,2801.9,2801.1,8.57208653]
[1645849133513,0.00517947,2801.9,2801.6,1.07121802]
[1645849134217,0.13819997,2802.4,2801.6,1.07121802]
[1645849134416,0.00517957,2801.9,2801.6,1.07441152]
[1645849134613,0.00517957,2801.9,2801.6,1.07121802]
[1645849135415,0.28079997,2802.4,2801.6,1.07121802]
[1645849135615,0.00487171,2801.9,2801.6,1.07441152]
[1645849135858,0.00487171,2801.9,2801.6,1.07121802]
[1645849136463,0.00383615,2801.9,2801.7,3.5]
[1645849136661,3.0145,2802.7,2801.7,3.5]
[1645849136863,3.0145,2802.7,2801.7,4.5031935]
[1645849136864,0.00487171,2801.9,2801.7,4.5031935]
[1645849137062,0.00487171,2801.9,2801.8,0.0031935]
[1645849137260,0.00487171,2801.9,2801.7,4.5]
[1645849137462,0.00487171,2801.9,2801.7,1.0]
[1645849137863,3.0145,2802.7,2801.6,1.37121802]
[1645849138064,3.0145,2802.7,2801.7,0.0031935]
[1645849138863,3.0145,2802.7,2802.4,1.13695649]
[1645849139063,0.3574,2802.8,2801.7,1.4489935]
[1645849139365,0.3574,2802.8,2801.8,0.0031935]
[1645849140313,1.25283449,2802.6,2801.9,1.10860158]
[1645849140513,0.00517901,2802.4,2801.9,1.40860158]
[1645849141312,0.5,2802.8,2801.9,1.40860158]
[1645849141520,0.1426,2802.8,2802.0,0.0031935]
[1645849141814,0.00517919,2802.3,2802.0,3.5031935]
[1645849142019,0.00517919,2802.3,2802.0,4.015]
[1645849142218,0.00517919,2802.3,2802.0,1.515]
[1645849142620,4.33549997,2803.4,2802.1,0.3574]
[1645849142820,4.33549997,2803.4,2802.9,1.34775219]
[1645849143020,4.33549997,2803.4,2802.1,3.8605935]
[1645849143021,0.13819997,2803.4,2802.2,5.1138935]
[1645849143272,3.24169997,2803.4,2802.3,0.0031935]
[1645849143965,3.24169997,2803.4,2802.7,1.32310063]
[1645849144165,0.00517836,2803.0,2802.7,1.32310063]
[1645849144366,0.00517836,2803.0,2802.8,3.5]
[1645849144569,0.00517836,2803.0,2802.9,4.015]
[1645849144766,7.836e-05,2803.0,2802.9,4.315]
[1645849144967,0.6176,2804.9,2803.2,0.3574]